fUSD/lending_fUSD_20240427
["ID","MTS","AMOUNT","RATE_DAILY","PERIOD"]
[323742995,1714228256069,-500.0,0.0001178,2]
[323742996,1714228256078,-500.0,0.0001178,2]
[323742997,1714228256087,-500.0,0.0001178,2]
[323742998,1714228256097,-547.63,0.0001178,2]
[323742999,1714228256106,-500.0,0.0001178,2]
[323743000,1714228256115,-500.0,0.0001178,2]
[323743001,1714228256125,-500.0,0.0001178,2]
[323743002,1714228256135,-500.0,0.0001178,2]
[323743003,1714228256145,-1274.14,0.0001178,2]
[323743004,1714228256154,-500.0,0.0001178,2]
[323743005,1714228256163,-500.0,0.0001178,2]
[323743006,1714228256173,-501.34806531,0.0001178,2]
[323743007,1714228256570,-102.23193469,0.0001178,2]
[323743008,1714228256581,-500.0,0.0001178,2]
[323743009,1714228256591,-500.0,0.0001178,2]
[323743010,1714228256601,-1072.84,0.0001178,2]
[323743011,1714228256613,-867.11,0.0001178,2]
[323743012,1714228256625,-500.0,0.0001178,2]
[323743013,1714228256636,-500.0,0.0001178,2]
[323743014,1714228256647,-500.0,0.0001178,2]
[323743015,1714228256660,-657.43,0.0001178,2]
[323743016,1714228256670,-1149.76,0.0001178,2]
[323743017,1714228256680,-516.71,0.0001178,2]
[323743018,1714228256691,-500.0,0.0001178,2]
[323743019,1714228256703,-1093.69,0.0001178,2]
[323743020,1714228256714,-511.06,0.0001178,2]
[323743021,1714228256725,-500.0,0.0001178,2]
[323743022,1714228256735,-654.91,0.0001178,2]
[323743023,1714228256745,-511.77,0.0001178,2]
[323743024,1714228256755,-500.0,0.0001178,2]
[323743025,1714228256765,-544.2,0.0001178,2]
[323743026,1714228256775,-192.87547843,0.0001178,2]
[323743027,1714228256786,-564.76,0.0001178,2]
[323743028,1714228256797,-1461.09,0.0001178,2]
[323743029,1714228256807,-500.0,0.0001178,2]
[323743030,1714228256818,-822.44,0.0001178,2]
[323743031,1714228256828,-318.18,0.0001178,2]
[323743032,1714228256837,-274.51947218,0.0001178,2]
[323743033,1714228256848,-638.93,0.0001178,2]
[323743034,1714228256858,-1150.53,0.0001178,2]
[323743035,1714228256868,-500.0,0.0001178,2]
[323743036,1714228256879,-531.52,0.0001178,2]
[323743037,1714228256889,-583.29,0.0001178,2]
[323743038,1714228256899,-513.34,0.0001178,2]
[323743039,1714228256909,-500.0,0.0001178,2]
[323743040,1714228256923,-588.36,0.0001178,2]
[323743041,1714228256933,-500.0,0.0001178,2]
[323743042,1714228256945,-889.29,0.0001178,2]
[323743043,1714228256957,-500.0,0.0001178,2]
[323743044,1714228256967,-500.0,0.0001178,2]
[323743045,1714228256978,-819.17,0.0001178,2]
[323743046,1714228256990,-500.0,0.0001178,2]
[323743047,1714228257000,-618.03,0.0001178,2]
[323743048,1714228257011,-500.0,0.0001178,2]
[323743049,1714228257023,-500.0,0.0001178,2]
[323743050,1714228257033,-500.0,0.0001178,2]
[323743051,1714228257043,-1459.39,0.0001178,2]
[323743052,1714228257053,-500.0,0.0001178,2]
[323743053,1714228257062,-960.94,0.0001178,2]
[323743054,1714228257072,-500.0,0.0001178,2]
[323743055,1714228257081,-500.0,0.0001178,2]
[323743056,1714228257092,-500.0,0.0001178,2]
[323743057,1714228257104,-1112.96,0.0001178,2]
[323743058,1714228257115,-500.0,0.0001178,2]
[323743059,1714228257125,-500.0,0.0001178,2]
[323743060,1714228257135,-509.68,0.0001178,2]
[323743061,1714228257145,-656.68,0.0001178,2]
[323743062,1714228257156,-500.0,0.0001178,2]
[323743063,1714228257166,-970.06,0.0001178,2]
[323743064,1714228257177,-500.0,0.0001178,2]
[323743065,1714228257186,-1539.66,0.0001178,2]
[323743066,1714228257196,-624.15,0.0001178,2]
[323743067,1714228257206,-2375.46,0.0001178,2]
[323743068,1714228257218,-879.26,0.0001178,2]
[323743069,1714228257399,-500.0,0.0001178,2]
[323743070,1714228257409,-500.0,0.0001178,2]
[323743071,1714228257419,-747.32,0.0001178,2]
[323743072,1714228257430,-500.0,0.0001178,2]
[323743073,1714228257441,-513.82,0.0001178,2]
[323743074,1714228257452,-500.0,0.0001178,2]
[323743075,1714228257462,-891.03,0.0001178,2]
[323743076,1714228257473,-928.28,0.0001178,2]
[323743077,1714228257483,-500.0,0.0001178,2]
[323743078,1714228257495,-500.0,0.0001178,2]
[323743079,1714228257506,-761.0,0.0001178,2]
[323743080,1714228257517,-949.01,0.0001178,2]
[323743081,1714228257527,-5021.31718507,0.0001178,2]
[323743082,1714228257555,-357.69482547,0.0001178,2]
[323743083,1714228257582,-2049.48798946,0.0001178,2]
[323743084,1714228257592,-1396.56,0.0001178,2]
[323743085,1714228257603,-500.0,0.0001178,2]
[323743086,1714228257613,-1257.62,0.0001178,2]
[323743087,1714228257625,-3998.98,0.0001178,2]
[323743088,1714228257635,-1362.63,0.0001178,2]
[323743089,1714228257646,-500.0,0.0001178,2]
[323743090,1714228257656,-500.0,0.0001178,2]
[323743091,1714228257666,-2168.23,0.0001178,2]
[323743092,1714228257676,-1136.81,0.0001178,2]
[323743093,1714228257686,-869.95,0.0001178,2]
[323743094,1714228257696,-854.27,0.0001178,2]
[323743095,1714228257705,-511.53,0.0001178,2]
[323743096,1714228257716,-500.0,0.0001178,2]
[323743097,1714228257726,-109.28064906,0.0001178,2]
[323743098,1714228257738,-1369.18137493,0.0001178,2]
[323743099,1714228257751,-496.29797601,0.0001178,2]
[323743100,1714228257762,-2352.08,0.0001178,2]
[323743101,1714228257772,-500.0,0.0001178,2]
[323743102,1714228257783,-500.0,0.0001178,2]
[323743103,1714228257793,-76.15829588,0.0001178,2]
[323743104,1714228257820,-348.04079335,0.0001178,2]
[323743105,1714228257835,-285.19091077,0.0001178,2]
[323743106,1714228257845,-107.103993,0.0001178,2]
[323743107,1714228257858,-838.536007,0.0001178,2]
[323743108,1714228257870,-148.77896228,0.0001178,2]
[323743109,1714228258492,-256.638,0.00010958,2]
[323743110,1714228258512,-243.362,0.00010958,2]
[323743111,1714228258521,-502.92553729,0.00010958,2]
[323743112,1714228258531,-500.0,0.00010958,2]
[323743113,1714228258540,-500.0,0.00010958,2]
[323743114,1714228258550,-500.0,0.00010958,2]
[323743115,1714228258559,-500.0,0.00011232,2]
[323743116,1714228258568,-500.0,0.00011232,2]
[323743117,1714228258577,-500.0,0.00011232,2]
[323743118,1714228258587,-542.0,0.00011245,2]
[323743119,1714228258597,-1257.0,0.00011245,2]
[323743120,1714228258607,-500.0,0.00011506,2]
[323743121,1714228258616,-500.0,0.00011506,2]
[323743122,1714228258627,-500.0,0.00011506,2]
[323743123,1714228258636,-351.22103772,0.0001178,2]
[323743124,1714228258647,-1612.07,0.0001178,2]
[323743125,1714228258656,-1529.05,0.0001178,2]
[323743126,1714228258665,-1215.84,0.0001178,2]
[323743127,1714228258674,-1057.36,0.0001178,2]
[323743128,1714228258683,-500.0,0.0001178,2]
[323743129,1714228258693,-574.81,0.0001178,2]
[323743130,1714228258702,-845.55,0.0001178,2]
[323743131,1714228258712,-500.0,0.0001178,2]
[323743132,1714228258722,-1095.22,0.0001178,2]
[323743133,1714228258732,-884.04,0.0001178,2]
[323743134,1714228258741,-1268.73,0.0001178,2]
[323743135,1714228258754,-500.0,0.0001178,2]
[323743136,1714228258764,-500.0,0.0001178,2]
[323743137,1714228258773,-1297.39,0.0001178,2]
[323743138,1714228258783,-2711.66,0.0001178,2]
[323743139,1714228258792,-1129.36,0.0001178,2]
[323743140,1714228258800,-500.0,0.0001178,2]
[323743141,1714228258809,-3259.39,0.0001178,2]
[323743142,1714228258818,-1471.22,0.0001178,2]
[323743143,1714228258827,-6187.43525471,0.0001178,2]
[323743144,1714228258840,-415.24100588,0.0001178,2]
[323743145,1714228258867,-628.91373941,0.0001178,2]
[323743146,1714228258878,-34.45064059,0.0001178,2]
[323743147,1714228258889,-929.9067113,0.0001178,2]
[323743148,1714228258900,-354.21,0.0001178,2]
[323743149,1714228258912,-674.73264811,0.0001178,2]
[323743150,1714228258923,-1717.3,0.0001178,2]
[323743151,1714228258934,-791.45,0.0001178,2]
[323743152,1714228258942,-705.02,0.0001178,2]
[323743153,1714228258952,-557.6,0.0001178,2]
[323743154,1714228258961,-1019.42,0.0001178,2]
[323743155,1714228258971,-590.14,0.0001178,2]
[323743156,1714228258981,-880.31,0.0001178,2]
[323743157,1714228258990,-536.14,0.0001178,2]
[323743158,1714228258999,-500.0,0.0001178,2]
[323743159,1714228259009,-4800.77,0.0001178,2]
[323743160,1714228259018,-500.0,0.0001178,2]
[323743161,1714228259028,-1651.26,0.0001178,2]
[323743162,1714228259037,-1328.76,0.0001178,2]
[323743163,1714228259046,-4944.52,0.0001178,2]
[323743164,1714228259056,-1705.03,0.0001178,2]
[323743165,1714228259066,-500.0,0.0001178,2]
[323743166,1714228259075,-2299.22,0.0001178,2]
[323743167,1714228259085,-1933.69,0.0001178,2]
[323743168,1714228259094,-1307.65,0.0001178,2]
[323743169,1714228259103,-779.66,0.0001178,2]
[323743170,1714228259113,-508.25,0.0001178,2]
[323743171,1714228259122,-500.0,0.0001178,2]
[323743172,1714228259131,-138.64032568,0.0001178,2]
[323743173,1714228259143,-4860.17967432,0.0001178,2]
[323743174,1714228259153,-3132.0,0.0001178,2]
[323743175,1714228259163,-500.0,0.0001178,2]
[323743176,1714228259173,-760.47,0.0001178,2]
[323743177,1714228259182,-2355.26,0.0001178,2]
[323743178,1714228259191,-609.8,0.0001178,2]
[323743179,1714228259201,-736.37,0.0001178,2]
[323743180,1714228259210,-2035.5,0.0001178,2]
[323743181,1714228259219,-1089.22,0.0001178,2]
[323743182,1714228259229,-500.0,0.0001178,2]
[323743183,1714228259238,-500.0,0.0001178,2]
[323743184,1714228259247,-1693.82,0.0001178,2]
[323743185,1714228259256,-658.83,0.0001178,2]
[323743186,1714228259266,-2422.43,0.0001178,2]
[323743187,1714228259275,-723.48,0.0001178,2]
[323743188,1714228259285,-1714.6,0.0001178,2]
[323743189,1714228259294,-2296.6,0.0001178,2]
[323743190,1714228259304,-917.32,0.0001178,2]
[323743191,1714228259313,-1581.5,0.0001178,2]
[323743192,1714228259322,-708.23,0.0001178,2]
[323743193,1714228259331,-1011.16,0.0001178,2]
[323743194,1714228259340,-973.5,0.0001178,2]
[323743195,1714228259349,-532.82,0.0001178,2]
[323743196,1714228259358,-576.96,0.0001178,2]
[323743197,1714228259367,-1117.83,0.0001178,2]
[323743198,1714228259378,-1095.41,0.0001178,2]
[323743199,1714228259387,-500.0,0.0001178,2]
[323743200,1714228259397,-2823.71,0.0001178,2]
[323743201,1714228259406,-2667.12,0.0001178,2]
[323743202,1714228259415,-938.16,0.0001178,2]
[323743203,1714228259425,-500.0,0.0001178,2]
[323743204,1714228259434,-500.0,0.0001178,2]
[323743205,1714228259443,-500.0,0.0001178,2]
[323743206,1714228259451,-596.74,0.0001178,2]
[323743207,1714228259460,-500.0,0.0001178,2]
[323743208,1714228259469,-5232.73,0.0001178,2]
[323743209,1714228259479,-1704.96,0.0001178,2]
[323743210,1714228259488,-500.0,0.0001178,2]
[323743211,1714228259497,-1831.92,0.0001178,2]
[323743212,1714228259506,-2027.68,0.0001178,2]
[323743213,1714228259515,-561.11,0.0001178,2]
[323743214,1714228259524,-512.24942124,0.0001178,2]
[323743215,1714228259533,-500.0,0.0001178,2]
[323743216,1714228259543,-500.0,0.0001178,2]
[323743217,1714228259552,-1171.34,0.0001178,2]
[323743218,1714228259561,-797.82,0.0001178,2]
[323743219,1714228259571,-857.6,0.0001178,2]
[323743220,1714228259580,-1244.36,0.0001178,2]
[323743221,1714228259589,-500.0,0.0001178,2]
[323743222,1714228259598,-508.97042575,0.0001178,2]
[323743223,1714228259607,-1859.78,0.0001178,2]
[323743224,1714228259616,-500.0,0.0001178,2]
[323743225,1714228259627,-500.0,0.0001178,2]
[323743226,1714228259637,-500.0,0.0001178,2]
[323743227,1714228259647,-500.0,0.0001178,2]
[323743228,1714228259656,-835.16,0.0001178,2]
[323743229,1714228259665,-500.0,0.0001178,2]
[323743230,1714228259674,-628.39,0.0001178,2]
[323743231,1714228259683,-990.43,0.0001178,2]
[323743232,1714228259692,-152.55510443,0.0001178,2]
[323743233,1714228259701,-500.0,0.0001178,2]
[323743234,1714228259710,-500.0,0.0001178,2]
[323743235,1714228259720,-500.0,0.0001178,2]
[323743236,1714228259729,-500.0,0.0001178,2]
[323743237,1714228259738,-500.0,0.0001178,2]
[323743238,1714228259747,-196.22365687,0.00011788,2]
[323743239,1714228259757,-362.41144213,0.00011788,2]
[323743240,1714228259766,-799.21308708,0.00011789,2]
[323743241,1714228259775,-188.16156644,0.00011792,2]
[323743242,1714228259785,-500.0,0.00011799,2]
[323743243,1714228259794,-13149.75966752,0.000118,2]
[323743244,1714228259806,-9411.26014652,0.000118,2]
[323743245,1714228259826,-500.0,0.0001178,2]
[323743246,1714228259839,-1013.39742384,0.000118,2]
[323743247,1714228259848,-458.89650099,0.000118,2]
[323743248,1714228259874,-500.0,0.0001178,2]
[323743249,1714228259883,-127957.93218175,0.000118,2]
[323743250,1714228259894,-3064.70812598,0.000118,2]
[323743252,1714228701842,202.63,8.393e-05,2]
[323743254,1714229180753,192.49,8.228e-05,2]
[323743310,1714229431686,-381.94,0.00010124,2]
[323743311,1714229431695,-11694.06,0.00010152,2]
[323743312,1714229431707,-3440.45514084,0.00010152,2]
[323743313,1714229431716,-187.98,0.00010153,2]
[323743314,1714229431725,-588.97,0.00010177,2]
[323743315,1714229431734,-151.45,0.00010196,2]
[323743316,1714229431744,-979.43,0.00010233,2]
[323743317,1714229431753,-196.24,0.00010254,2]
[323743318,1714229431763,-446.74,0.00010283,2]
[323743319,1714229431772,-192.49,0.00010492,2]
[323743320,1714229431781,-150.0,0.00010603,2]
[323743321,1714229431791,-935.8240957,0.00010629,2]
[323743322,1714229431800,-447.56,0.0001063,10]
[323743323,1714229431810,-1000.0,0.00010845,2]
[323743324,1714229431819,-470.4090219,0.00010845,2]
[323743325,1714229431828,-5150.45173956,0.00010846,2]
[323743326,1714229431863,-466.33962102,0.00010846,2]
[323743327,1714229431876,-702.5238791,0.00010846,2]
[323743328,1714229431911,-2464.76794777,0.00010846,2]
[323743329,1714229431924,-1656.56021945,0.00010846,2]
[323743356,1714229437958,-10831.62979471,0.00010846,2]
[323743357,1714229437968,-193.5376112,0.00010858,2]
[323743358,1714229437978,-1008.0156,0.00010858,2]
[323743359,1714229437987,-1174.1362,0.00010858,2]
[323743360,1714229437997,-5619.41147868,0.00010858,2]
[323743361,1714229438009,-4052.14762132,0.00010858,2]
[323743362,1714229438018,-458.87,0.00010858,2]
[323743363,1714229438028,-647.61,0.00010858,2]
[323743364,1714229438037,-155.0,0.000109,2]
[323743365,1714229438047,-324.54407194,0.00010956,2]
[323743366,1714229438057,-155.0,0.00010957,2]
[323743367,1714229438066,-500.0,0.00010958,2]
[323743368,1714229438076,-280.77802966,0.00010958,2]
[323743369,1714229438085,-242.47685484,0.00010958,2]
[323743370,1714229438095,-506.49277053,0.00010958,2]
[323743371,1714229438104,-502.65693531,0.00010958,2]
[323743372,1714229438114,-502.31743943,0.00010958,2]
[323743373,1714229438125,-500.0,0.00010958,2]
[323743374,1714229438135,-504.60472953,0.00010958,2]
[323743375,1714229438145,-502.66046066,0.00010958,2]
[323743376,1714229438154,-508.41384116,0.00010958,2]
[323743377,1714229438164,-507.37593287,0.00010958,2]
[323743378,1714229438174,-503.33634087,0.00010958,2]
[323743379,1714229438183,-504.77332533,0.00010958,2]
[323743380,1714229438194,-500.0,0.00010958,2]
[323743381,1714229438203,-500.0,0.00010958,2]
[323743382,1714229438212,-505.32400555,0.00010958,2]
[323743383,1714229438221,-500.0,0.00010958,2]
[323743384,1714229438231,-585.84852078,0.00010958,2]
[323743385,1714229438240,-500.0,0.00010958,2]
[323743386,1714229438249,-503.55149829,0.00010958,2]
[323743387,1714229438258,-501.83294634,0.00010958,2]
[323743388,1714229438267,-504.0259668,0.00010958,2]
[323743389,1714229438277,-390.58648443,0.00010958,2]
[323743390,1714229438286,-501.77908982,0.00010958,2]
[323743391,1714229438296,-504.03104909,0.00010958,2]
[323743392,1714229438307,-503.27714261,0.00010958,2]
[323743393,1714229438326,-500.0,0.00010958,2]
[323743397,1714229438561,-497.53063838,0.00010958,2]
[323743398,1714229438577,-501.94094152,0.00010958,2]
[323743399,1714229438587,-603.60938006,0.00010958,2]
[323743400,1714229438597,-500.0,0.00010958,2]
[323743401,1714229438606,-504.28600211,0.00010958,2]
[323743402,1714229438616,-503.17886195,0.00010958,2]
[323743403,1714229438626,-606.83391664,0.00010958,2]
[323743404,1714229438635,-501.50842918,0.00010958,2]
[323743405,1714229438644,-500.67576583,0.00010958,2]
[323743406,1714229438654,-185.54071473,0.00010958,2]
[323743407,1714229438663,-501.4111339,0.00010958,2]
[323743408,1714229438672,-500.0,0.00010958,2]
[323743409,1714229438682,-502.558277,0.00010958,2]
[323743410,1714229438692,-152.52186435,0.00010958,2]
[323743411,1714229438701,-500.0,0.00010958,2]
[323743412,1714229438710,-505.68025961,0.00010958,2]
[323743413,1714229438719,-305.16648702,0.00010958,2]
[323743414,1714229438729,-505.44901685,0.00010958,2]
[323743415,1714229438737,-504.28887484,0.00010958,2]
[323743416,1714229438747,-500.0,0.00010958,2]
[323743417,1714229438756,-552.56795361,0.00010958,2]
[323743418,1714229438765,-500.0,0.00010958,2]
[323743419,1714229438775,-505.71352985,0.00010958,2]
[323743420,1714229438784,-486.86221024,0.00010958,2]
[323743421,1714229438801,-15.8417593,0.00010958,2]
[323743422,1714229438810,-388.79969641,0.00010958,2]
[323743423,1714229438822,-111.20030359,0.00010958,2]
[323743424,1714229438831,-500.0,0.00010958,2]
[323743425,1714229438840,-5.17969641,0.00010958,2]
[323743426,1714229438852,-400.0,0.00010958,2]
[323743427,1714229438863,-94.82030359,0.00010958,2]
[323743428,1714229438874,-507.40269941,0.00010958,2]
[323743429,1714229438883,-297.776997,0.00010958,2]
[323743430,1714229438894,-202.223003,0.00010958,2]
[323743431,1714229438903,-507.11218332,0.00010958,2]
[323743432,1714229438912,-500.0,0.00010958,2]
[323743433,1714229438922,-500.0,0.00010958,2]
[323743434,1714229438931,-500.0,0.00010958,2]
[323743435,1714229438940,-272.74695328,0.00010958,2]
[323743436,1714229438949,-500.0,0.00010958,2]
[323743437,1714229438958,-500.0,0.00010958,2]
[323743438,1714229438967,-500.0,0.00010958,2]
[323743439,1714229438977,-500.0,0.00010958,2]
[323743440,1714229438986,-502.77871075,0.00010958,2]
[323743441,1714229438995,-502.81103761,0.00010958,2]
[323743442,1714229439004,-502.07674848,0.00010958,2]
[323743443,1714229439013,-624.23011509,0.00010958,2]
[323743444,1714229439022,-500.0,0.00010958,2]
[323743445,1714229439031,-500.0,0.00010958,2]
[323743446,1714229439041,-500.0,0.00010958,2]
[323743447,1714229439050,-500.0,0.00010958,2]
[323743448,1714229439059,-501.6038258,0.00010958,2]
[323743449,1714229439068,-311.77747284,0.00010958,2]
[323743450,1714229439077,-596.47462195,0.00010958,2]
[323743451,1714229439086,-500.0,0.00010958,2]
[323743452,1714229439095,-277.0009249,0.00010958,2]
[323743453,1714229439104,-500.0,0.00010958,2]
[323743454,1714229439113,-500.0,0.00010958,2]
[323743455,1714229439122,-500.0,0.00010958,2]
[323743456,1714229439131,-505.06177143,0.00010958,2]
[323743457,1714229439140,-500.0,0.00010958,2]
[323743458,1714229439149,-500.0,0.00010958,2]
[323743459,1714229439158,-500.0,0.00010958,2]
[323743460,1714229439168,-529.97126658,0.00010958,2]
[323743461,1714229439177,-500.0,0.00010958,2]
[323743462,1714229439186,-501.39148041,0.00010958,2]
[323743463,1714229439195,-500.0,0.00010958,2]
[323743464,1714229439204,-512.38304009,0.00010958,2]
[323743465,1714229439213,-500.0,0.00010958,2]
[323743466,1714229439222,-407.26309244,0.00010958,2]
[323743467,1714229439232,-500.0,0.00010958,2]
[323743468,1714229439241,-503.42029911,0.00010958,2]
[323743469,1714229439251,-505.46898184,0.00010958,2]
[323743470,1714229439261,-511.85718861,0.00010958,2]
[323743471,1714229439270,-500.0,0.00010958,2]
[323743472,1714229439279,-509.45293995,0.00010958,2]
[323743473,1714229439289,-507.3733466,0.00010958,2]
[323743474,1714229439298,-500.0,0.00010958,2]
[323743475,1714229439308,-500.0,0.00010958,2]
[323743476,1714229439320,-500.0,0.00010958,2]
[323743477,1714229439329,-507.2561016,0.00010958,2]
[323743478,1714229439338,-500.0,0.00010958,2]
[323743479,1714229439347,-500.0,0.00010958,2]
[323743480,1714229439357,-500.0,0.00010958,2]
[323743481,1714229439365,-500.0,0.00010958,2]
[323743482,1714229439376,-557.58829987,0.00010958,2]
[323743483,1714229439385,-500.0,0.00010958,2]
[323743484,1714229439394,-500.0,0.00010958,2]
[323743485,1714229439403,-501.23345983,0.00010958,2]
[323743486,1714229439413,-502.12012369,0.00010958,2]
[323743487,1714229439422,-500.0,0.00010958,2]
[323743488,1714229439431,-500.0,0.00010958,2]
[323743489,1714229439440,-500.0,0.00010958,2]
[323743490,1714229439450,-549.11,0.00010958,2]
[323743491,1714229439460,-506.69159287,0.00010958,2]
[323743492,1714229439468,-500.0,0.00010958,2]
[323743493,1714229439478,-500.0,0.00010958,2]
[323743494,1714229439487,-500.0,0.00010958,2]
[323743495,1714229439496,-500.0,0.00010958,2]
[323743496,1714229439505,-500.0,0.00010958,2]
[323743497,1714229439514,-500.0,0.00010958,2]
[323743498,1714229439523,-500.0,0.00010958,2]
[323743499,1714229439533,-500.0,0.00010958,2]
[323743500,1714229439542,-500.0,0.00010958,2]
[323743501,1714229439551,-500.0,0.00010958,2]
[323743502,1714229439561,-214.1536,0.00010958,2]
[323743503,1714229439570,-500.0,0.00010958,2]
[323743504,1714229439579,-500.0,0.00010958,2]
[323743505,1714229439588,-500.0,0.00010958,2]
[323743506,1714229439598,-500.0,0.00010958,2]
[323743507,1714229439608,-313.55739244,0.00010958,2]
[323743508,1714229439617,-500.0,0.00010958,2]
[323743510,1714229439627,-387.87268946,0.00010958,2]
[323743511,1714229439636,-500.0,0.00010958,2]
[323743512,1714229439645,-500.0,0.00010958,2]
[323743513,1714229439654,-504.53037035,0.00010958,2]
[323743514,1714229439663,-500.0,0.00010958,2]
[323743515,1714229439672,-500.0,0.00010958,2]
[323743516,1714229439681,-500.0,0.00010958,2]
[323743517,1714229439690,-500.0,0.00010958,2]
[323743518,1714229439698,-500.0,0.00010958,2]
[323743519,1714229439707,-500.0,0.00010958,2]
[323743520,1714229439716,-500.0,0.00010958,2]
[323743521,1714229439725,-500.0,0.00010958,2]
[323743522,1714229439733,-500.0,0.00010958,2]
[323743523,1714229439742,-500.0,0.00010958,2]
[323743524,1714229439751,-500.0,0.00010958,2]
[323743525,1714229439760,-500.0,0.00010958,2]
[323743526,1714229439769,-500.0,0.00010958,2]
[323743527,1714229439777,-500.0,0.00010958,2]
[323743528,1714229439786,-500.0,0.00010958,2]
[323743529,1714229439794,-500.0,0.00010958,2]
[323743530,1714229439803,-500.0,0.00010958,2]
[323743531,1714229439813,-500.0,0.00010958,2]
[323743532,1714229439822,-500.0,0.00010958,2]
[323743533,1714229439831,-577.12720354,0.00010958,2]
[323743534,1714229439840,-500.0,0.00010958,2]
[323743535,1714229439849,-511.97482882,0.00010958,2]
[323743536,1714229439859,-503.92031699,0.00010958,2]
[323743537,1714229439867,-500.0,0.00010958,2]
[323743538,1714229439878,-500.0,0.00010958,2]
[323743539,1714229439887,-335.43687771,0.00010958,2]
[323743540,1714229439896,-501.6218288,0.00010958,2]
[323743541,1714229439905,-500.0,0.00010958,2]
[323743542,1714229439915,-500.4928717,0.00010958,2]
[323743543,1714229439930,-522.87,0.00010958,2]
[323743544,1714229439945,-500.0,0.00010958,2]
[323743545,1714229439961,-500.0,0.00010958,2]
[323743546,1714229439972,-500.0,0.00010958,2]
[323743547,1714229439986,-500.0,0.00010958,2]
[323743548,1714229440000,-512.25,0.00010958,2]
[323743549,1714229440015,-500.0,0.00010958,2]
[323743550,1714229440029,-500.0,0.00010958,2]
[323743551,1714229440043,-500.0,0.00010958,2]
[323743552,1714229440055,-500.0,0.00010958,2]
[323743553,1714229440070,-500.0,0.00010958,2]
[323743554,1714229440083,-500.0,0.00010958,2]
[323743555,1714229440096,-500.0,0.00010958,2]
[323743556,1714229440110,-500.0,0.00010958,2]
[323743557,1714229440123,-509.09444314,0.00010958,2]
[323743559,1714229440135,-500.0,0.00010958,2]
[323743561,1714229440150,-500.0,0.00010958,2]
[323743563,1714229440163,-500.0,0.00010958,2]
[323743566,1714229440178,-820.52,0.00010958,2]
[323743568,1714229440191,-500.0,0.00010958,2]
[323743571,1714229440203,-500.0,0.00010958,2]
[323743573,1714229440217,-500.0,0.00010958,2]
[323743574,1714229440230,-500.0,0.00010958,2]
[323743575,1714229440245,-500.0,0.00010958,2]
[323743576,1714229440259,-500.0,0.00010958,2]
[323743577,1714229440275,-500.0,0.00010958,2]
[323743578,1714229440288,-500.0,0.00010958,2]
[323743579,1714229440299,-500.0,0.00010958,2]
[323743580,1714229440310,-500.0,0.00010958,2]
[323743581,1714229440324,-500.0,0.00010958,2]
[323743582,1714229440337,-500.0,0.00010958,2]
[323743583,1714229440351,-500.0,0.00010958,2]
[323743584,1714229440363,-500.0,0.00010958,2]
[323743585,1714229440376,-500.0,0.00010958,2]
[323743586,1714229440389,-500.0,0.00010958,2]
[323743587,1714229440401,-500.0,0.00010958,2]
[323743588,1714229440412,-630.2029141,0.00010958,2]
[323743589,1714229440424,-500.0,0.00010958,2]
[323743590,1714229440439,-500.0,0.00010958,2]